fUSD/lending_fUSD_20250326
["ID","MTS","AMOUNT","RATE_DAILY","PERIOD"]
[356710763,1743000651602,-500.0,0.00027671,2]
[356710764,1743000651612,-300.747108,0.00027671,7]
[356710765,1743000651622,-500.0,0.00027671,2]
[356710766,1743000651632,-500.0,0.00027671,2]
[356710767,1743000651641,-151.0,0.00027671,7]
[356710768,1743000651651,-500.0,0.00027671,2]
[356710769,1743000651780,-500.0,0.00027671,2]
[356710770,1743000651791,-500.0,0.00027671,2]
[356710771,1743000651800,-517.79894403,0.00027671,2]
[356710772,1743000651810,-500.0,0.00027671,2]
[356710773,1743000651820,-500.0,0.00027671,2]
[356710774,1743000651830,-500.0,0.00027671,2]
[356710775,1743000651840,-631.18636799,0.00027671,2]
[356710776,1743000651850,-293.69941223,0.00027671,2]
[356710777,1743000651860,-500.0,0.00027671,2]
[356710778,1743000651869,-500.0,0.00027671,2]
[356710779,1743000651879,-518.58369403,0.00027671,2]
[356710780,1743000651889,-534.60671335,0.00027671,2]
[356710781,1743000651898,-500.0,0.00027671,2]
[356710782,1743000651908,-500.0,0.00027671,2]
[356710783,1743000651918,-242.98917182,0.00027671,2]
[356710784,1743000651928,-500.0,0.00027671,2]
[356710785,1743000651938,-500.0,0.00027671,2]
[356710786,1743000651949,-353.15105913,0.00027671,2]
[356710787,1743000651958,-500.0,0.00027671,2]
[356710788,1743000651968,-500.0,0.00027671,2]
[356710789,1743000651978,-515.2104667,0.00027671,2]
[356710790,1743000651988,-524.24921863,0.00027671,2]
[356710791,1743000651998,-253.1983269,0.00027671,2]
[356710792,1743000652008,-500.0,0.00027671,2]
[356710793,1743000652017,-500.0,0.00027671,2]
[356710794,1743000652028,-500.0,0.00027671,2]
[356710795,1743000652038,-500.00042911,0.00027671,2]
[356710796,1743000652049,-512.69273467,0.00027671,2]
[356710797,1743000652059,-500.0,0.00027671,2]
[356710798,1743000652069,-500.0,0.00027671,2]
[356710799,1743000652079,-500.0,0.00027671,2]
[356710800,1743000652090,-500.0,0.00027671,2]
[356710801,1743000652100,-512.44116959,0.00027671,2]
[356710802,1743000652110,-522.27,0.00027671,2]
[356710803,1743000652119,-500.0,0.00027671,2]
[356710804,1743000652129,-519.55268017,0.00027671,2]
[356710805,1743000652139,-500.0,0.00027671,2]
[356710806,1743000652148,-500.0,0.00027671,2]
[356710807,1743000652158,-159.253341,0.00027671,7]
[356710808,1743000652168,-527.61130201,0.00027671,2]
[356710809,1743000652178,-159.27820144,0.00027671,2]
[356710810,1743000652188,-500.0,0.00027671,2]
[356710811,1743000652199,-500.0,0.00027671,2]
[356710812,1743000652209,-2032.32,0.00027671,2]
[356710813,1743000652219,-500.0,0.00027671,2]
[356710814,1743000652229,-515.7939078,0.00027671,2]
[356710815,1743000652239,-514.76685216,0.00027671,2]
[356710816,1743000652249,-500.0,0.00027671,2]
[356710817,1743000652259,-516.76465792,0.00027671,2]
[356710818,1743000652269,-500.0,0.00027671,2]
[356710819,1743000652279,-500.0,0.00027671,2]
[356710820,1743000652291,-500.0,0.00027671,2]
[356710821,1743000652313,-537.31923423,0.00027671,2]
[356710822,1743000652323,-500.0,0.00027671,2]
[356710823,1743000652333,-528.32652632,0.00027671,2]
[356710824,1743000652343,-514.43290078,0.00027671,2]
[356710825,1743000652353,-637.03189781,0.00027671,2]
[356710826,1743000652362,-151.0,0.00027671,7]
[356710827,1743000652372,-500.0,0.00027671,2]
[356710828,1743000652382,-500.0,0.00027671,2]
[356710829,1743000652391,-556.99030699,0.00027671,2]
[356710830,1743000652402,-500.0,0.00027671,2]
[356710831,1743000652411,-500.0,0.00027671,2]
[356710832,1743000652420,-1157.22,0.00027671,2]
[356710833,1743000652430,-500.0,0.00027671,2]
[356710834,1743000652440,-527.24115557,0.00027671,2]
[356710835,1743000652450,-500.0,0.00027671,2]
[356710836,1743000652462,-509.29566605,0.00027671,2]
[356710837,1743000652473,-150.73,0.00027725,2]
[356710838,1743000652482,-150.73,0.00027789,2]
[356710839,1743000652492,-600.0,0.000278,10]
[356710840,1743000652503,-761.3815921,0.00027806,2]
[356710841,1743000652512,-9806.55040695,0.00027825,2]
[356710842,1743000652522,-397.21746873,0.0002783,15]
[356710843,1743000652535,-150.73,0.00027853,2]
[356710844,1743000652545,-900.0,0.000279,10]
[356710845,1743000652554,-1451.34777393,0.0002791,2]
[356710846,1743000652564,-150.73,0.00027916,2]
[356710847,1743000652574,-55331.7473335,0.00027925,3]
[356710848,1743000652584,-12910.4612783,0.00027925,3]
[356710849,1743000652593,-10328.3690226,0.00027935,3]
[356710850,1743000652603,-500.0,0.00027944,2]
[356710851,1743000652612,-565.83,0.00027944,2]
[356710852,1743000652621,-161.6,0.00027945,2]
[356710853,1743000652631,-500.0,0.00027945,2]
[356710854,1743000652641,-500.0,0.00027945,2]
[356710855,1743000652651,-500.0,0.00027945,2]
[356710856,1743000652661,-500.0,0.00027945,2]
[356710857,1743000652671,-648.17,0.00027945,2]
[356710858,1743000652680,-500.0,0.00027945,2]
[356710859,1743000652690,-777.44,0.00027945,2]
[356710860,1743000652699,-500.0,0.00027945,2]
[356710861,1743000652709,-500.0,0.00027945,2]
[356710862,1743000652718,-500.0,0.00027945,2]
[356710863,1743000652728,-500.0,0.00027945,2]
[356710864,1743000652737,-500.0,0.00027945,2]
[356710865,1743000652746,-392.11582497,0.00027945,2]
[356710866,1743000652756,-500.0,0.00027945,2]
[356710867,1743000652765,-413.19814033,0.00027945,2]
[356710868,1743000652774,-500.0,0.00027945,2]
[356710869,1743000652788,-512.9057874,0.00027945,2]
[356710870,1743000652797,-500.0,0.00027945,2]
[356710871,1743000652807,-531.837732,0.00027945,2]
[356710872,1743000652816,-626.87533841,0.00027945,2]
[356710873,1743000652825,-500.0,0.00027945,2]
[356710874,1743000652835,-617.91120293,0.00027945,2]
[356710875,1743000652844,-500.0,0.00027945,2]
[356710876,1743000652854,-500.0,0.00027945,2]
[356710877,1743000652864,-2763.61,0.00027945,2]
[356710878,1743000652873,-2000.0,0.00027945,2]
[356710879,1743000652883,-513.38554083,0.00027945,2]
[356710880,1743000652892,-571.93209674,0.00027945,2]
[356710881,1743000652902,-508.45456203,0.00027945,2]
[356710882,1743000652911,-561.84975182,0.00027945,2]
[356710883,1743000652921,-8280.89,0.00027945,2]
[356710884,1743000652930,-567.18892625,0.00027945,2]
[356710885,1743000652940,-506.92156017,0.00027945,2]
[356710886,1743000652949,-525.7556535,0.00027945,2]
[356710887,1743000652959,-500.0,0.00027945,2]
[356710888,1743000652969,-500.0,0.00027945,2]
[356710889,1743000652979,-592.84782512,0.00027945,2]
[356710890,1743000652989,-500.0,0.00027945,2]
[356710891,1743000652998,-500.0,0.00027945,2]
[356710892,1743000653007,-503.96088728,0.00027945,2]
[356710893,1743000653018,-500.0,0.00027945,2]
[356710894,1743000653028,-516.11474187,0.00027945,2]
[356710895,1743000653041,-500.0,0.00027945,2]
[356710896,1743000653051,-510.47711689,0.00027945,2]
[356710897,1743000653062,-500.0,0.00027945,2]
[356710898,1743000653073,-500.0,0.00027945,2]
[356710899,1743000653083,-510.89582206,0.00027945,2]
[356710900,1743000653094,-500.0,0.00027945,2]
[356710901,1743000653104,-512.06209798,0.00027945,2]
[356710902,1743000653114,-510.68960539,0.00027945,2]
[356710903,1743000653124,-500.0,0.00027945,2]
[356710904,1743000653135,-630.63,0.00027945,2]
[356710905,1743000653145,-517.78,0.00027945,2]
[356710906,1743000653155,-500.0,0.00027945,2]
[356710907,1743000653165,-500.0,0.00027945,2]
[356710908,1743000653176,-500.0,0.00027945,2]
[356710909,1743000653186,-500.0,0.00027945,2]
[356710910,1743000653196,-500.0,0.00027945,2]
[356710911,1743000653206,-501.955293,0.00027945,2]
[356710912,1743000653216,-500.0,0.00027945,2]
[356710913,1743000653225,-358.019512,0.00027945,2]
[356710914,1743000653235,-517.98449236,0.00027945,2]
[356710915,1743000653244,-500.0,0.00027945,2]
[356710916,1743000653254,-500.0,0.00027945,2]
[356710917,1743000653264,-500.0,0.00027945,2]
[356710918,1743000653277,-180.41389038,0.00027945,2]
[356710919,1743000653292,-500.0,0.00027945,2]
[356710920,1743000653302,-519.45374732,0.00027945,2]
[356710921,1743000653312,-500.0,0.00027945,2]
[356710922,1743000653322,-500.0,0.00027945,2]
[356710923,1743000653331,-500.0,0.00027945,2]
[356710924,1743000653341,-556.50799145,0.00027945,2]
[356710925,1743000653350,-465.66043516,0.00027945,2]
[356710926,1743000653360,-500.0,0.00027945,2]
[356710927,1743000653369,-444.16957512,0.00027945,2]
[356710928,1743000653379,-500.0,0.00027945,2]
[356710929,1743000653389,-500.0,0.00027945,2]
[356710930,1743000653398,-500.0,0.00027945,2]
[356710931,1743000653407,-500.0,0.00027945,2]
[356710932,1743000653417,-534.77887025,0.00027945,2]
[356710933,1743000653426,-500.0,0.00027945,2]
[356710934,1743000653436,-541.64507448,0.00027945,2]
[356710935,1743000653446,-500.0,0.00027945,2]
[356710936,1743000653456,-500.0,0.00027945,2]
[356710937,1743000653467,-201.75973103,0.00027945,2]
[356710938,1743000653476,-500.0,0.00027945,2]
[356710939,1743000653487,-500.0,0.00027945,2]
[356710940,1743000653496,-622.18,0.00027945,2]
[356710941,1743000653506,-466.14675366,0.00027945,2]
[356710942,1743000653515,-500.0,0.00027945,2]
[356710943,1743000653525,-526.33300299,0.00027945,2]
[356710944,1743000653539,-500.0,0.00027945,2]
[356710945,1743000653549,-500.0,0.00027945,2]
[356710946,1743000653558,-500.0,0.00027945,2]
[356710947,1743000653568,-500.0,0.00027945,2]
[356710948,1743000653675,-442.35218721,0.00027945,2]
[356710949,1743000653686,-7298.39,0.00027945,2]
[356710950,1743000653696,-2936.08,0.00027945,2]
[356710951,1743000653705,-503.44883545,0.00027945,2]
[356710952,1743000653714,-500.0,0.00027945,2]
[356710953,1743000653723,-500.0,0.00027945,2]
[356710954,1743000653732,-500.0,0.00027945,2]
[356710955,1743000653742,-500.0,0.00027945,2]
[356710956,1743000653751,-626.89842796,0.00027945,2]
[356710957,1743000653761,-500.0,0.00027945,2]
[356710958,1743000653770,-500.0,0.00027945,2]
[356710959,1743000653782,-500.0,0.00027945,2]
[356710960,1743000653792,-500.0,0.00027945,2]
[356710961,1743000653802,-524.86990147,0.00027945,2]
[356710962,1743000653811,-1756.69,0.00027945,2]
[356710963,1743000653821,-500.0,0.00027945,2]
[356710964,1743000653831,-500.0,0.00027945,2]
[356710965,1743000653840,-500.0,0.00027945,2]
[356710966,1743000653849,-500.0,0.00027945,2]
[356710967,1743000653858,-643.1444567,0.00027945,2]
[356710968,1743000653868,-500.0,0.00027945,2]
[356710969,1743000653877,-500.0,0.00027945,2]
[356710970,1743000653887,-500.0,0.00027945,2]
[356710971,1743000653897,-500.0,0.00027945,2]
[356710972,1743000653907,-498.51221049,0.00027945,2]
[356710973,1743000653916,-500.0,0.00027945,2]
[356710974,1743000653925,-354.57261232,0.00027945,2]
[356710975,1743000653935,-500.0,0.00027945,2]
[356710976,1743000653945,-500.0,0.00027945,2]
[356710977,1743000653954,-500.0,0.00027945,2]
[356710978,1743000653964,-500.0,0.00027945,2]
[356710979,1743000653974,-500.0,0.00027945,2]
[356710980,1743000653983,-574.34201122,0.00027945,2]
[356710981,1743000653994,-500.0,0.00027945,2]
[356710982,1743000654003,-500.0,0.00027945,2]
[356710983,1743000654012,-500.0,0.00027945,2]
[356710984,1743000654022,-507.91434809,0.00027945,2]
[356710985,1743000654033,-163.92561337,0.00027945,2]
[356710986,1743000654043,-500.0,0.00027945,2]
[356710987,1743000654053,-500.0,0.00027945,2]
[356710988,1743000654063,-997.97,0.00027945,2]
[356710989,1743000654073,-200.541963,0.00027945,7]
[356710990,1743000654083,-500.0,0.00027945,2]
[356710991,1743000654093,-500.0,0.00027945,2]
[356710992,1743000654103,-500.0,0.00027945,2]
[356710993,1743000654113,-500.0,0.00027945,2]
[356710994,1743000654122,-386.20887501,0.00027945,2]
[356710995,1743000654132,-500.0,0.00027945,2]
[356710996,1743000654142,-151.0,0.00027945,7]
[356710997,1743000654151,-5691.93,0.00027945,2]
[356710998,1743000654162,-500.0,0.00027945,2]
[356710999,1743000654171,-500.0,0.00027945,2]
[356711000,1743000654181,-500.0,0.00027945,2]
[356711001,1743000654191,-500.0,0.00027945,2]
[356711002,1743000654200,-589.02371841,0.00027945,2]
[356711003,1743000654209,-184.960501,0.00027945,2]
[356711004,1743000654219,-1045.37,0.00027945,2]
[356711005,1743000654228,-500.0,0.00027945,2]
[356711006,1743000654238,-500.0,0.00027945,2]
[356711007,1743000654248,-500.0,0.00027945,2]
[356711008,1743000654257,-500.0,0.00027945,2]
[356711009,1743000654267,-500.0,0.00027945,2]
[356711010,1743000654277,-500.0,0.00027945,2]
[356711011,1743000654288,-513.61,0.00027945,2]
[356711012,1743000654298,-500.0,0.00027945,2]
[356711013,1743000654308,-1360.65,0.00027945,2]
[356711014,1743000654317,-273.9194246,0.00027945,2]
[356711015,1743000654327,-500.0,0.00027945,2]
[356711016,1743000654337,-500.0,0.00027945,2]
[356711017,1743000654347,-500.0,0.00027945,2]
[356711018,1743000654356,-387.31171242,0.00027945,2]
[356711019,1743000654366,-500.0,0.00027945,2]
[356711020,1743000654376,-500.0,0.00027945,2]
[356711021,1743000654386,-500.0,0.00027945,2]
[356711022,1743000654395,-614.37014575,0.00027945,2]
[356711023,1743000654405,-500.0,0.00027945,2]
[356711024,1743000654414,-500.0,0.00027945,2]
[356711025,1743000654423,-1415.07,0.00027945,2]
[356711026,1743000654432,-5712.77,0.00027945,2]
[356711027,1743000654442,-538.13,0.00027945,2]
[356711028,1743000654456,-500.0,0.00027945,2]
[356711029,1743000654465,-500.0,0.00027945,2]
[356711030,1743000654475,-500.0,0.00027945,2]
[356711031,1743000654495,-500.0,0.00027945,2]
[356711032,1743000654510,-500.0,0.00027945,2]
[356711033,1743000654526,-151.0,0.00027945,7]
[356711034,1743000654544,-500.0,0.00027945,2]
[356711035,1743000654560,-500.0,0.00027945,2]
[356711036,1743000654577,-500.0,0.00027945,2]
[356711037,1743000654590,-500.0,0.00027945,2]
[356711038,1743000654607,-500.0,0.00027945,2]
[356711039,1743000654624,-500.0,0.00027945,2]
[356711040,1743000654641,-592.75,0.00027945,2]
[356711041,1743000654657,-500.0,0.00027945,2]
[356711042,1743000654676,-531.21252982,0.00027945,2]
[356711043,1743000654692,-500.0,0.00027945,2]
[356711044,1743000654707,-500.0,0.00027945,2]
[356711045,1743000654724,-500.0,0.00027945,2]
[356711046,1743000654739,-151.0,0.00027945,7]
[356711047,1743000654752,-151.0,0.00027945,7]
[356711048,1743000654768,-500.0,0.00027945,2]
[356711049,1743000654784,-500.0,0.00027945,2]
[356711050,1743000654797,-500.0,0.00027945,2]
[356711051,1743000654814,-500.0,0.00027945,2]
[356711052,1743000654827,-500.0,0.00027945,2]
[356711053,1743000654840,-513.54254847,0.00027945,2]
[356711054,1743000654854,-500.0,0.00027945,2]
[356711055,1743000654867,-500.0,0.00027945,2]
[356711056,1743000654881,-500.0,0.00027945,2]
[356711057,1743000654895,-500.0,0.00027945,2]
[356711058,1743000654909,-4204.32,0.00027945,2]
[356711059,1743000654922,-153.602421,0.00027945,7]
[356711060,1743000654936,-500.0,0.00027945,2]
[356711061,1743000654949,-500.0,0.00027945,2]
[356711062,1743000654962,-500.0,0.00027945,2]
[356711063,1743000654976,-61058.61,0.00027945,2]
[356711064,1743000654990,-500.0,0.00027945,2]
[356711065,1743000655004,-500.0,0.00027945,2]
[356711066,1743000655017,-500.0,0.00027945,2]
[356711067,1743000655029,-500.0,0.00027945,2]
[356711068,1743000655043,-500.0,0.00027945,2]
[356711069,1743000655057,-500.0,0.00027945,2]
[356711070,1743000655071,-500.0,0.00027945,2]
[356711071,1743000655084,-500.0,0.00027945,2]
[356711072,1743000655097,-500.0,0.00027945,2]
[356711073,1743000655112,-500.0,0.00027945,2]
[356711074,1743000655126,-500.0,0.00027945,2]
[356711075,1743000655139,-500.0,0.00027945,2]
[356711076,1743000655153,-526.9271131,0.00027945,2]
[356711077,1743000655166,-500.0,0.00027945,2]
[356711078,1743000655179,-500.0,0.00027945,2]
[356711079,1743000655194,-500.0,0.00027945,2]
[356711080,1743000655207,-500.0,0.00027945,2]
[356711081,1743000655221,-500.0,0.00027945,2]
[356711082,1743000655234,-500.0,0.00027945,2]
[356711083,1743000655247,-1257.4,0.00027945,2]
[356711084,1743000655260,-500.0,0.00027945,2]
[356711085,1743000655274,-500.0,0.00027945,2]
[356711086,1743000655289,-500.0,0.00027945,2]
[356711087,1743000655303,-506.9013359,0.00027945,2]
[356711088,1743000655316,-593.39687767,0.00027945,2]
[356711089,1743000655329,-535.90649085,0.00027945,2]
[356711090,1743000655343,-500.0,0.00027945,2]
[356711091,1743000655357,-812.02,0.00027945,2]
[356711092,1743000655370,-500.0,0.00027945,2]
[356711093,1743000655384,-500.0,0.00027945,2]
[356711094,1743000655397,-380.25523136,0.00027945,2]
[356711095,1743000655410,-500.0,0.00027945,2]
[356711096,1743000655423,-500.0,0.00027945,2]
[356711097,1743000655437,-500.0,0.00027945,2]
[356711098,1743000655451,-441.31585754,0.00027945,2]
[356711099,1743000655467,-500.0,0.00027945,2]
[356711100,1743000655480,-500.0,0.00027945,2]
[356711101,1743000655494,-500.0,0.00027945,2]
[356711102,1743000655507,-563.2884133,0.00027945,2]
[356711103,1743000655521,-1702.79,0.00027945,2]
[356711104,1743000655535,-1896.71,0.00027945,2]
[356711105,1743000655547,-500.0,0.00027945,2]
[356711106,1743000655562,-500.0,0.00027945,2]
[356711107,1743000655575,-500.0,0.00027945,2]
[356711108,1743000655584,-730.0,0.00027945,2]
[356711109,1743000655594,-514.15510456,0.00027945,2]
[356711110,1743000655603,-500.0,0.00027945,2]
[356711111,1743000655612,-581.50079454,0.00027945,2]
[356711112,1743000655622,-209.89243066,0.00027945,2]
[356711113,1743000655795,-515.17785924,0.00027945,2]
[356711114,1743000655813,-500.0,0.00027945,2]
[356711115,1743000655823,-500.0,0.00027945,2]
[356711116,1743000655832,-500.0,0.00027945,2]
[356711117,1743000655841,-500.0,0.00027945,2]
[356711118,1743000655851,-500.0,0.00027945,2]
[356711119,1743000655860,-515.44289785,0.00027945,2]
[356711120,1743000655869,-500.0,0.00027945,2]
[356711121,1743000655879,-531.27240744,0.00027945,2]
[356711122,1743000655888,-1500.0,0.00027945,2]
[356711123,1743000655898,-500.0,0.00027945,2]
[356711124,1743000655907,-500.0,0.00027945,2]
[356711125,1743000655916,-500.0,0.00027945,2]
[356711126,1743000655926,-500.0,0.00027945,2]
[356711127,1743000655936,-500.0,0.00027945,2]
[356711128,1743000655945,-550.73523274,0.00027945,2]
[356711129,1743000655954,-500.0,0.00027945,2]
[356711130,1743000655965,-500.0,0.00027945,2]
[356711131,1743000655974,-533.150685,0.00027945,2]
[356711132,1743000655984,-500.0,0.00027945,2]
[356711133,1743000655993,-500.0,0.00027945,2]
[356711134,1743000656003,-500.0,0.00027945,2]
[356711135,1743000656012,-500.0,0.00027945,2]
[356711136,1743000656021,-500.0,0.00027945,2]
[356711137,1743000656032,-500.0,0.00027945,2]
[356711138,1743000656042,-500.0,0.00027945,2]
[356711139,1743000656051,-529.55289333,0.00027945,2]
[356711140,1743000656060,-500.0,0.00027945,2]
[356711141,1743000656070,-500.0,0.00027945,2]
[356711142,1743000656079,-500.0,0.00027945,2]
[356711143,1743000656088,-554.08954266,0.00027945,2]
[356711144,1743000656099,-500.0,0.00027945,2]
[356711145,1743000656108,-500.0,0.00027945,2]
[356711146,1743000656119,-548.69171659,0.00027945,2]
[356711147,1743000656129,-500.0,0.00027945,2]
[356711148,1743000656138,-522.27,0.00027945,2]
[356711149,1743000656148,-500.0,0.00027945,2]
[356711150,1743000656158,-544.4987558,0.00027945,2]
[356711151,1743000656169,-500.0,0.00027945,2]
[356711152,1743000656178,-500.0,0.00027945,2]
[356711153,1743000656187,-544.45361143,0.00027945,2]
[356711154,1743000656197,-2032.32,0.00027945,2]
[356711155,1743000656206,-500.0,0.00027945,2]
[356711156,1743000656216,-576.14203384,0.00027945,2]
[356711157,1743000656225,-500.0,0.00027945,2]
[356711158,1743000656234,-500.0,0.00027945,2]
[356711159,1743000656243,-500.0,0.00027945,2]
[356711160,1743000656253,-500.0,0.00027945,2]
[356711161,1743000656262,-151.0,0.00027945,7]
[356711162,1743000656271,-500.0,0.00027945,2]
[356711163,1743000656281,-500.0,0.00027945,2]
[356711164,1743000656290,-500.0,0.00027945,2]
[356711165,1743000656299,-500.0,0.00027945,2]
[356711166,1743000656309,-1157.22,0.00027945,2]
[356711167,1743000656319,-515.6923131,0.00027945,2]
[356711168,1743000656329,-154.44897831,0.00027945,2]
[356711169,1743000656338,-150.73,0.0002798,2]
[356711170,1743000656347,-805.27262472,0.0002801,30]
[356711171,1743000656356,-150.73,0.00028044,2]
[356711172,1743000656366,-150.73,0.00028108,2]
[356711173,1743000656375,-3026.1158,0.00028139,2]
[356711174,1743000656384,-150.73,0.00028172,2]
[356711175,1743000656394,-10338.8908062,0.00028189,2]
[356711176,1743000656404,-1367.2808494,0.00028189,2]
[356711177,1743000656413,-218.311288,0.00028209,7]
[356711178,1743000656422,-500.0,0.00028218,2]
[356711179,1743000656431,-150.0,0.00028218,2]
[356711180,1743000656440,-514.17469667,0.00028219,2]
[356711181,1743000656454,-500.0,0.00028219,2]
[356711182,1743000656463,-500.0,0.00028219,2]
[356711183,1743000656472,-476.97516028,0.00028219,2]
[356711184,1743000656481,-648.17,0.00028219,2]
[356711185,1743000656492,-500.0,0.00028219,2]
[356711186,1743000656501,-777.44,0.00028219,2]
[356711187,1743000656510,-263.65074937,0.00028219,2]
[356711188,1743000656519,-500.0,0.00028219,2]
[356711189,1743000656529,-500.0,0.00028219,2]
[356711190,1743000656540,-500.0,0.00028219,2]
[356711191,1743000656549,-230.59557235,0.00028219,2]
[356711192,1743000656559,-180.16162027,0.00028219,2]
[356711193,1743000656568,-500.0,0.00028219,2]
[356711194,1743000656577,-219.67524437,0.00028219,2]
[356711195,1743000656587,-2763.61,0.00028219,2]
[356711196,1743000656597,-525.01085802,0.00028219,2]
[356711197,1743000656607,-8280.89,0.00028219,2]
[356711198,1743000656616,-190.85436334,0.00028219,2]
[356711199,1743000656625,-500.0,0.00028219,2]
[356711200,1743000656635,-574.62001526,0.00028219,2]
[356711201,1743000656644,-500.0,0.00028219,2]
[356711202,1743000656654,-500.0,0.00028219,2]
[356711203,1743000656663,-500.0,0.00028219,2]
[356711204,1743000656672,-500.0,0.00028219,2]
[356711205,1743000656681,-630.63,0.00028219,2]
[356711206,1743000656691,-517.78,0.00028219,2]
[356711207,1743000656700,-500.0,0.00028219,2]
[356711208,1743000656709,-500.0,0.00028219,2]
[356711209,1743000656719,-500.0,0.00028219,2]
[356711210,1743000656729,-500.0,0.00028219,2]
[356711211,1743000656738,-500.0,0.00028219,2]
[356711212,1743000656747,-501.955293,0.00028219,2]
[356711213,1743000656756,-537.87723342,0.00028219,2]
[356711214,1743000656765,-358.019512,0.00028219,2]
[356711215,1743000656775,-500.0,0.00028219,2]
[356711216,1743000656785,-500.0,0.00028219,2]
[356711217,1743000656794,-163.03684499,0.00028219,2]
[356711218,1743000656803,-500.0,0.00028219,2]
[356711219,1743000656813,-500.0,0.00028219,2]
[356711220,1743000656823,-500.0,0.00028219,2]
[356711221,1743000656832,-500.0,0.00028219,2]
[356711222,1743000656841,-455.25185477,0.00028219,2]
[356711223,1743000656851,-500.0,0.00028219,2]
[356711224,1743000656860,-211.11286946,0.00028219,2]
[356711225,1743000656870,-500.0,0.00028219,2]
[356711226,1743000656879,-222.35570347,0.00028219,2]
[356711227,1743000656888,-500.0,0.00028219,2]
[356711228,1743000656898,-507.17627231,0.00028219,2]
[356711229,1743000656908,-500.0,0.00028219,2]
[356711230,1743000656918,-336.36424649,0.00028219,2]
[356711231,1743000656927,-500.0,0.00028219,2]
[356711232,1743000656937,-622.18,0.00028219,2]
[356711233,1743000656946,-500.0,0.00028219,2]
[356711234,1743000656956,-500.0,0.00028219,2]
[356711235,1743000656965,-500.0,0.00028219,2]
[356711236,1743000656975,-500.0,0.00028219,2]
[356711237,1743000656984,-411.64938499,0.00028219,2]
[356711238,1743000656994,-7298.39,0.00028219,2]
[356711239,1743000657003,-2936.08,0.00028219,2]
[356711240,1743000657012,-500.0,0.00028219,2]
[356711241,1743000657022,-500.0,0.00028219,2]
[356711242,1743000657033,-500.0,0.00028219,2]
[356711243,1743000657043,-500.0,0.00028219,2]
[356711244,1743000657052,-351.80323784,0.00028219,2]
[356711245,1743000657062,-500.0,0.00028219,2]
[356711246,1743000657072,-160.004272,0.00028219,7]
[356711247,1743000657082,-500.0,0.00028219,2]
[356711248,1743000657092,-439.31265934,0.00028219,2]
[356711249,1743000657101,-1756.69,0.00028219,2]
[356711250,1743000657110,-500.0,0.00028219,2]
[356711251,1743000657121,-500.0,0.00028219,2]
[356711252,1743000657130,-500.0,0.00028219,2]
[356711253,1743000657140,-500.0,0.00028219,2]
[356711254,1743000657151,-500.0,0.00028219,2]
[356711255,1743000657160,-500.0,0.00028219,2]
[356711256,1743000657169,-500.0,0.00028219,2]
[356711257,1743000657179,-500.0,0.00028219,2]
[356711258,1743000657189,-500.0,0.00028219,2]
[356711259,1743000657199,-500.0,0.00028219,2]
[356711260,1743000657208,-307.00980184,0.00028219,2]
[356711261,1743000657217,-500.0,0.00028219,2]
[356711262,1743000657227,-500.0,0.00028219,2]